Cogmind - Beta 14 @@@ ROGUE MODE // 2024.09.19 @ 21:11:10 Player: Evel Wyn Result: Destroyed by G-34 Mercenary with Small Laser Performance ------------- Evolutions (1) 500 Regions Visited (3) 600 Robots Destroyed (5) 25 Value Destroyed (196) 196 Prototype IDs (0) 0 Alien Tech Used (0) 0 Bonus (0) 0 TOTAL SCORE: 1321 Bonus ------- None Cogmind --------- Core Integrity 0/400 Matter 295/300 Energy 98/100 System Corruption 3% Temperature Cool (6) Movement Core (50) Location -9/Storage Parts ------- > --- POWER (1) -------- (None) > --- PROPULSION (2) --- (None) > --- UTILITY (4) ------ (None) > --- WEAPON (2) ------- (None) > --- INVENTORY (5) ---- Aluminum Leg Aluminum Leg Wheel High-capacity Matter Pod (124) Peak State ------------ > --- POWER ------------ Ion Engine > --- PROPULSION ------- Light Treads Wheel > --- UTILITY ---------- High-capacity Storage Unit Structural Scanner > --- WEAPON ----------- Assault Rifle Assault Rifle > --- INVENTORY -------- Ion Engine Light Ion Engine Light Treads Aluminum Leg Aluminum Leg Wheel Small Storage Unit Large Storage Unit High-capacity Matter Pod Light Assault Rifle [Rating: 8] Favorites ----------- Power Ion Engine Engine Ion Engine Propulsion Aluminum Leg Treads Light Treads Leg Aluminum Leg Wheel Wheel Utility Structural Scanner Device Structural Scanner Storage High-capacity Storage Unit Protection Hardened Light Armor Plating Weapon Assault Rifle Ballistic Gun Assault Rifle Build | -11 -10 -9 -9 ------- Run | Yrd Mat Mat Sto Slots Evolved 2 | . . 2 . Power . | . . . . Propulsion . | . . . . Utility 2 | . . 2 . Weapon . | . . . . Parts Attached 17 | 7 3 4 3 Power 3 | 1 . 1 1 Engine 3 | 1 . 1 1 Core . | . . . . Reactor . | . . . . Propulsion 5 | 2 1 2 . Treads 1 | 1 . . . Leg 2 | . . 2 . Wheel 2 | 1 1 . . Hover . | . . . . Flight . | . . . . Utility 5 | 1 2 . 2 Device 2 | . 1 . 1 Storage 2 | 1 1 . . Processor . | . . . . Hackware . | . . . . Protection 1 | . . . 1 Artifact . | . . . . Weapon 4 | 3 . 1 . Energy Gun . | . . . . Energy Cannon . | . . . . Ballistic Gun 4 | 3 . 1 . Ballistic Cannon . | . . . . Launcher . | . . . . Special Weapon . | . . . . Impact Weapon . | . . . . Slashing Weapon . | . . . . Piercing Weapon . | . . . . Special Melee Weapon . | . . . . Unidentified Prototypes . | . . . . Parts Lost 12 | . 4 . 8 Power 3 | . 1 . 2 Propulsion 4 | . 2 . 2 Utility 2 | . . . 2 Weapon 3 | . 1 . 2 Highest Loss Streak 4 | . 4 . 4 To Critical Strikes . | . . . . Average Slot Usage (%) 72 | . 92 66 39 Engine 9 | . 12 11 5 Treads 7 | . 13 . . Leg 6 | . . 22 12 Wheel 7 | . 14 . . Device 10 | . 10 11 9 Storage 7 | . 14 . . Ballistic Gun 21 | . 26 22 11 Peak Build Rating 8 | 6 8 6 6 Average Rating 5 | 4 6 5 3 On Entrance 4 | . 6 4 6 Naked Turns 23 | . . . 23 Heaviest Build 50 | 14 50 9 9 Greatest Support 20 | 10 10 20 20 Greatest Overweight (x) 4 | 1 4 . 1 Average Overweight (x) 1 | . 3 . . Largest Inventory Capacity 20 | 8 20 20 5 Average Capacity 12 | 6 19 5 5 Most Carried 10 | 6 10 7 5 Average Carried 6 | 4 8 5 4 Final Capacity 20 | 8 20 5 5 Final Carried 8 | 6 8 5 4 Class Distribution -------------------- 100% | Mutant Dominant Class ---------------- Mutant | -10/Materials Mutant | -9/Materials Mutant | -9/Storage Resources | -11 -10 -9 -9 ----------- Run | Yrd Mat Mat Sto Matter Collected 511 | 257 143 . 111 Remotely . | . . . . Salvage Created 217 | . 143 . 74 Parts 10 | . 6 . 4 Haulers Intercepted . | . . . . Recyclers Shooed . | . . . . Parts Field Recycled . | . . . . Retrieved Matter . | . . . . Parts Self-Destructed . | . . . . Prevented . | . . . . Kills | -11 -10 -9 -9 ------- Run | Yrd Mat Mat Sto Combat Hostiles Destroyed 5 | . 3 . 2 Guns 5 | . 3 . 2 Classes Destroyed 1 | . 1 . . Grunt 5 | . 3 . 2 Best Kill Streak 2 | . 2 . 2 Combat Bots Only 2 | . 2 . 2 Max Kills in Single Turn 1 | . 1 . 1 Gunslinging . | . . . . Exploded . | . . . . Melee . | . . . . Uniques/NPCs Destroyed . | . . . . Combat | -11 -10 -9 -9 -------- Run | Yrd Mat Mat Sto Hostile Shots Fired 190 | . 69 1 120 Missed 69 | . 16 1 52 Damage Taken 1528 | . 515 . 1013 Core 502 | . 96 . 406 Absorbed by Shields . | . . . . Core Remaining (%) 80 | 100 61 . . Volleys Fired 18 | . 11 . 7 Largest 2 | . 2 . 2 Hottest 40 | . 40 . 40 Shots Fired 36 | . 22 . 14 Gun 36 | . 22 . 14 Cannon . | . . . . Launcher . | . . . . Special . | . . . . Kinetic 36 | . 22 . 14 Thermal . | . . . . Explosive . | . . . . Electromagnetic . | . . . . Robot Hit Streak 9 | . 9 . 9 Robot Miss Streak 6 | . 6 . 2 Penetration Max . | . . . . Secondary Targets 2 | . 1 . 1 Max Gunslinging Chain 1 | . 1 . 1 Shots Hit Robots 23 | . 12 . 11 Core Hits 12 | . 7 . 5 Critical Kills . | . . . . Critical Parts Destroyed 1 | . 1 . . Critical Strikes 1 | . 1 . . Destroy 1 | . 1 . . Melee Attacks . | . . . . Impact . | . . . . Slashing . | . . . . Piercing . | . . . . Sneak Attacks . | . . . . Combat Hostiles . | . . . . Follow-up Attacks . | . . . . Damage Inflicted 266 | . 148 . 118 Guns 257 | . 147 . 110 Cannons . | . . . . Explosions . | . . . . Melee . | . . . . Ramming 9 | . 1 . 8 Kinetic 257 | . 147 . 110 Thermal . | . . . . Explosive . | . . . . Electromagnetic . | . . . . Impact . | . . . . Slashing . | . . . . Piercing . | . . . . Highest Corruption 3 | . . . 3 Average Corruption 2 | . . . 2 Corruption Purged . | . . . . Corruption Blocked . | . . . . Effects 2 | . . . 2 Message Errors 1 | . . . 1 Data Loss (major) 1 | . . . 1 Overload Shots . | . . . . Overflow Damage . | . . . . Projectiles . | . . . . Explosions . | . . . . Melee . | . . . . Knockbacks . | . . . . Impact . | . . . . Kinetic . | . . . . Secondary . | . . . . Self-Inflicted Damage 3 | . . . 3 Shots . | . . . . Rammed 4 | . 1 . 3 Targets Rammed 4 | . 1 . 3 Kicked . | . . . . Crushed . | . . . . Highest Temperature 20 | . 10 . 20 Average Temperature 5 | . 4 . 6 Received Heat Transfer 516 | . 138 . 378 Siege Activations . | . . . . Robots Corrupted . | . . . . Combat Hostiles . | . . . . Parts Fried . | . . . . Impact Corruptions . | . . . . Robots Melted . | . . . . Combat Hostiles . | . . . . Parts Melted . | . . . . Heat Transferred . | . . . . Parts Sabotaged . | . . . . Parts Stolen . | . . . . Parts Stripped . | . . . . Power Chain Reactions . | . . . . Alert | -11 -10 -9 -9 ------- Run | Yrd Mat Mat Sto Peak Influence 116 | . 85 5 116 Initial 5 | . . 5 1 Average 24 | . 23 5 43 Maximum Alert Level . | . . . . Low Security (%) 100 | 100 100 100 100 Level 1 . | . . . . Level 2 . | . . . . Level 3 . | . . . . Level 4 . | . . . . Level 5 . | . . . . High Security . | . . . . Max Security . | . . . . Squads Dispatched 3 | . 1 . 2 Investigation 1 | . 1 . . Extermination . | . . . . Reinforcement . | . . . . Assault . | . . . . Garrison 2 | . . . 2 Intercept . | . . . . Searches Triggered . | . . . . Construction Impeded . | . . . . Haulers Reinforced . | . . . . Active Scanning Responses . | . . . . Cargo Convoy Interrupts . | . . . . Stealth | -11 -10 -9 -9 --------- Run | Yrd Mat Mat Sto Distress Signals 2 | . 1 . 1 Communications Jammed . | . . . . Distress Signals . | . . . . Times Spotted 32 | . 10 2 20 Peak Tracking Total 12 | . 6 1 12 Tactical Retreats 3 | . 2 . 1 Traps | -11 -10 -9 -9 ------- Run | Yrd Mat Mat Sto Traps Triggered 5 | . . . 5 Indirectly . | . . . . Trap Hack Attempts . | . . . . Triggered . | . . . . Disarmed . | . . . . Reprogrammed . | . . . . Reused . | . . . . Traps Extracted . | . . . . Installed . | . . . . Triggered . | . . . . Machines | -11 -10 -9 -9 ---------- Run | Yrd Mat Mat Sto Machines Disabled . | . . . . Max in Single Turn . | . . . . Machines Repaired . | . . . . Machines Dismantled . | . . . . Machines Sabotaged . | . . . . Overloaded Fab Kills . | . . . . Hacking | -11 -10 -9 -9 --------- Run | Yrd Mat Mat Sto Machines Accessed 2 | . 1 . 1 Terminals 2 | . 1 . 1 Fabricators . | . . . . Repair Stations . | . . . . Recycling Units . | . . . . Scanalyzers . | . . . . Garrison Access . | . . . . Total Hacks 5 | . 3 . 2 Successful 2 | . 1 . 1 Failed 3 | . 2 . 1 Catastrophic . | . . . . Database Lockouts . | . . . . Manual . | . . . . Terminals 5 | . 3 . 2 Fabricators . | . . . . Repair Stations . | . . . . Recycling Units . | . . . . Scanalyzers . | . . . . Garrison Access . | . . . . Terminal Hacks 2 | . 1 . 1 Open Door 1 | . . . 1 Alert Level 1 | . 1 . . Fabricator Hacks . | . . . . Repair Station Hacks . | . . . . Recycling Unit Hacks . | . . . . Scanalyzer . | . . . . Garrison Access Hacks . | . . . . Unauthorized Hacks . | . . . . Terminals . | . . . . Fabricators . | . . . . Repair Stations . | . . . . Recycling Units . | . . . . Scanalyzers . | . . . . Garrison Access . | . . . . Data Cores Recovered . | . . . . Used . | . . . . Hacking Detections 1 | . 1 . . Full Trace Events 1 | . 1 . . Feedback Events . | . . . . Feedback Blocked . | . . . . Robot Schematics Acquired . | . . . . Robots Built . | . . . . Authchips . | . . . . Time . | . . . . Total Robot Build Rating . | . . . . Part Schematics Acquired . | . . . . Parts Built . | . . . . Authchips . | . . . . Time . | . . . . Total Part Build Rating . | . . . . Parts Repaired . | . . . . Time . | . . . . Parts Recycled . | . . . . Recycled Matter . | . . . . Retrieved Matter . | . . . . Retrieved Components . | . . . . Parts Scanalyzed . | . . . . Part Schematics Acquired . | . . . . Parts Damaged . | . . . . Bothacking | -11 -10 -9 -9 ------------ Run | Yrd Mat Mat Sto Used RIF Installer . | . . . . Robots Hacked . | . . . . Non-combat . | . . . . Combat . | . . . . Robot Hacks Applied . | . . . . Relay Couplers Released . | . . . . Fabnet Peak Effective % . | . . . . Robots Rewired . | . . . . Allies Hacked . | . . . . Hacks Repelled . | . . . . Allies | -11 -10 -9 -9 -------- Run | Yrd Mat Mat Sto Total Allies . | . . . . Largest Group . | . . . . Highest-Rated Group . | . . . . Highest-Rated Ally . | . . . . Total Orders . | . . . . Ally Attacks . | . . . . Total Damage . | . . . . Kills . | . . . . Allies Corrupted . | . . . . Allies Melted . | . . . . Intel | -11 -10 -9 -9 ------- Run | Yrd Mat Mat Sto Robot Analysis Total . | . . . . Derelict Logs Recovered . | . . . . Drone Launches . | . . . . Drone Recoveries . | . . . . Exploration | -11 -10 -9 -9 ------------- Run | Yrd Mat Mat Sto Turns Passed 813 | 66 404 107 236 Spaces Moved 663 | 58 264 84 257 Core 154 | 1 . . 153 Treads . | . . . . Legs 188 | . . 84 104 Wheels 321 | 57 264 . . Hover . | . . . . Flight . | . . . . Fastest Speed 50 | 50 95 120 50 Average Speed 108 | 87 136 120 80 Slowest Speed 140 | 95 140 120 120 Overloaded Moves . | . . . . Propulsion Burnouts . | . . . . Robots Hopped . | . . . . Cave-ins Triggered . | . . . . Exploration Rate (%) 29 | 4 49 14 51 Regions Visited 3 Branch Regions 1 Pre-discovered Areas . | . . . . Known Exits Taken . | . . . . Unknown Exits Taken 3 | 1 1 1 . Scrap Searched . | . . . . Spaces Dug . | . . . . Terrain Destroyed . | . . . . Melee . | . . . . Projectile . | . . . . AOE . | . . . . Terrain Rammed . | . . . . Walls Destroyed . | . . . . Machines Disabled . | . . . . Actions | -11 -10 -9 -9 --------- Run | Yrd Mat Mat Sto Total 719 | 69 285 90 275 Wait 2 | . 2 . . Move 660 | 57 263 83 257 Hop . | . . . . Pick Up 12 | 5 3 1 3 Fast Attach 9 | 6 2 . 1 Attach 6 | . 1 3 2 Detach 1 | . 1 . . Swap 2 | 1 . 1 . Drop 5 | . 1 2 2 Fire 18 | . 11 . 7 Melee . | . . . . Ram 4 | . 1 . 3 Kick . | . . . . Crush . | . . . . Escape Stasis . | . . . . Rewire . | . . . . Trap . | . . . . Miscellaneous . | . . . . Route ------- -11/Scrapyard -10/Materials -9/Materials -9/Storage History --------- Turn | Location | Event 9 | -11/Scrapyard | Discovered new exit (range 15) 67 | -11/Scrapyard | Entered Materials 271 | -10/Materials | Discovered new exit (range 8) 314 | -10/Materials | Build established: Mutant 471 | -10/Materials | Entered another Materials area 471 | -9/Materials | Evolved 2 slots: Utility x2 493 | -9/Materials | Lost 4 parts (1p2n1w) 522 | -9/Materials | Discovered new exit (range 16) 578 | -9/Materials | Entered Storage 638 | -9/Storage | Garrison activated, responded to threat 724 | -9/Storage | Lost 4 parts (2p1n1w) 757 | -9/Storage | Core integrity fell below 50% 772 | -9/Storage | Lost 3 parts (1n1u1w) 797 | -9/Storage | Core integrity fell below 20% 814 | -9/Storage | Destroyed by G-34 Mercenary with Small Laser Last Messages --------------- 00750_ Connecting with Door Terminal... 00750_ Current location identified: Storage >>Open(Door) Sealed Heavy Doors opened. 00760_ System corrupted: Substantial component data lost. 00765_ K-01 Serf cleans the Storage Shell. 00770_ K-01 Serf cleans the Component Storage. 00778_ Triggered Blade Trap. 00778_ Massive razor-sharp blades shoot up from within the floor. 00778_ Structural Scanner severed. 00778_ Triggered Blade Trap. 00778_ Massive razor-sharp blades shoot up from within the floor. 00780_ Acquired Structural Scanner. 00793_ Critical hit (Burn: +37). 00795_ Structural Scanner destroyed. 00802_ KUUVC,%OVZW1OSKMD9F5NUHM9 Map ----- +----------------------------------------------------+ | """ #####??? | | "T" #####??? | | """ " " #####??? | | ########## """ % ##??? | | ########## """ ##??? | | ##?????### """ ##??? | | #########T """ ##??? | | ########## ^ ##??? | | # # ##??? | | # / ##??? | | # """" # ##??? | | # "??"" # ##??? | | + "???"" ######"T"##"T"## Y ##??? | | # ""???" ######"""##"""##Y ##??? | | # ""??" ##??############gg ##??? | | # """" ##??############ g ##??? | | # ##????####????##b ##??? | | ###########???##"""###### ##??? | | ###########??###"Y"######g ##??? | | ##???????????## + ##??? | | ????????????### """ """ # ##??? | | ????????????""" """ """ # ##??? | | ????????????"G """ """ / ##??? | | ????????????""" """ """ #a ##??? | | ?????????????## """ """ # ##??? | | ?????????????## #@ ##??? | | ??????????????# # ##??? | | ?????????????###### ##### ##??? | | ?????????????############ ##??? | | ?????????????## + ##??? | | ?????????????## """ # ##??? | | ?????????????## """"?" # ##??? | | ?????????????## "????" + % ##??? | | ?????????????## "????" # ##??? | | ?????????????## "?"""" # ##??? | | ?????????????## """ # ##??? | | ?????????????## # ##??? | | ?????????????############ ##??? | | ?????????????############ ##??? | | ???????????????????????## ##??? | | ???????????????????????## ##??? | | ???????????????????????## ##??? | | ???????????????????????## ##??? | | ???????????????????????## ##??? | | ???????????????????????## ##??? | | ???????????????????????## ##??? | | ???????????????????????## ##??? | | ???????????????????????## ##??? | | ???????????????????????########??? | | ???????????????????????########??? | +----------------------------------------------------+ Best States ------------- Heat Dissipation 28 Energy Generation 10 Energy Capacity 250 Matter Stores 300 Matter Capacity 300 Sight Range 16 Terrain Scan Density 10 Armor Coverage 150 Evasion (%) 55 Recoil Reduction 1 Item Schematics ----------------- None Robot Schematics ------------------ None Fabricated ------------ Nothing Alien Tech Used ----------------- None Achievements -------------- None Challenges ------------ None Game ------ Seed StormImpulseTelecube Manual? 0 Play Time 00:10:31 Cumulative 24.3 hours Start 2024.09.19 @ 20:59:53 End 2024.09.19 @ 21:11:10 Sessions 1 Manual Loads 0 Difficulty Rogue Special Mode None Game No. 31 Rogue 31 Adventurer 0 Explorer 0 Win Type - Total 0 Types 0/0/0/0/0/0/0/0/0 Lore% 16 Gallery% 22 Achievement% 20 Wizard Run 0 Options --------- Layout 1 ASCII 0 Keyboard 1 Movement Numpad Keybinds 0 Fullscreen 2 Font 48/Tamsyn Map View 50x35 Zoom Use 0% Tactical HUD 1 Map Filters NONE Filters NONE Steam 1 RUN: ed347b78-979b-44c9-965e-4142e223e6d0